bitfinex-derivatives/quotes_BTCF0:USTF0_20210409
["timestamp","ask_amount","ask_price","bid_price","bid_amount"]
[1617963128798,4.6604217,58239.0,58238.0,0.28349211]
[1617963130698,4.6604217,58239.0,58208.0,0.28565806]
[1617963130899,1.5,58238.0,58208.0,0.28565806]
[1617963131100,3.1015,58212.0,58206.0,0.4824]
[1617963131302,3.24391,58212.0,58211.0,0.10725655]
[1617963131798,3.24391,58212.0,58211.0,0.11725655]
[1617963134001,0.14241,58212.0,58211.0,0.11725655]
[1617963134202,0.10725655,58223.0,58211.0,2.82985655]
[1617963135301,0.10725655,58223.0,58222.0,0.10725655]
[1617963135801,0.10725655,58223.0,58222.0,0.37725655]
[1617963137603,0.10725655,58223.0,58222.0,0.52355655]
[1617963142607,0.10725655,58223.0,58222.0,0.37725655]
[1617963152521,0.24594655,58223.0,58222.0,0.37725655]
[1617963154623,0.24594655,58223.0,58222.0,3.76945655]
[1617963154823,0.24594655,58223.0,58222.0,0.37725655]
[1617963156128,0.10725655,58223.0,58222.0,0.37725655]
[1617963158727,0.21858655,58223.0,58222.0,0.37725655]
[1617963159540,1.21858655,58223.0,58222.0,0.37725655]
[1617963160846,1.21858655,58223.0,58222.0,0.27]
[1617963161130,4.67148655,58223.0,58222.0,0.27]
[1617963161331,4.67148655,58223.0,58210.0,0.27]
[1617963161533,4.67148655,58223.0,58208.0,0.2872806]
[1617963161534,0.10725655,58211.0,58208.0,0.2872806]
[1617963161751,0.21941655,58211.0,58209.0,0.26]
[1617963162032,0.21941655,58211.0,58206.0,0.58965655]
[1617963162232,0.21941655,58211.0,58208.0,0.02]
[1617963162431,0.21941655,58211.0,58206.0,0.10725655]
[1617963162432,0.21941655,58211.0,58210.0,0.26]
[1617963162634,1.21941655,58211.0,58206.0,0.10725655]
[1617963162832,1.21941655,58211.0,58208.0,0.27]
[1617963163033,1.21941655,58211.0,58210.0,0.25]
[1617963163276,1.0,58209.0,58206.0,0.10725655]
[1617963163535,0.21941655,58211.0,58208.0,0.03]
[1617963163734,1.21941655,58211.0,58206.0,0.10725655]
[1617963163966,1.0,58209.0,58206.0,0.10725655]
[1617963164147,1.0,58209.0,58208.0,0.27]
[1617963164339,1.0,58208.0,58207.0,0.27]
[1617963164553,1.0,58208.0,58206.0,0.10725655]
[1617963164735,1.0,58209.0,58206.0,0.10725655]
[1617963164937,1.0,58209.0,58207.0,0.27]
[1617963165138,0.21941655,58211.0,58207.0,0.27]
[1617963165337,1.0,58208.0,58207.0,0.27]
[1617963166038,0.21941655,58211.0,58207.0,0.27]
[1617963166742,1.0,58208.0,58207.0,0.27]
[1617963169044,1.0,58208.0,58207.0,0.5587891]
[1617963169243,1.51039416,58209.0,58207.0,0.6095891]
[1617963169446,1.0,58208.0,58207.0,0.3208]
[1617963170246,0.51039416,58209.0,58207.0,0.3208]
[1617963170445,0.10725655,58211.0,58207.0,0.3208]
[1617963170644,1.0,58208.0,58207.0,0.3208]
[1617963170853,4.28308,58208.0,58207.0,0.27]
[1617963171247,4.73121983,58208.0,58202.0,0.27]
[1617963171647,4.73121983,58208.0,58177.0,0.4878]
[1617963171648,5.33914515,58208.0,58207.0,0.27]
[1617963171849,2.70944515,58208.0,58202.0,0.27]
[1617963172248,1.0,58203.0,58198.0,0.26]
[1617963172447,1.0,58203.0,58197.0,0.28842265]
[1617963172649,1.0,58203.0,58202.0,0.27]
[1617963172850,1.0,58201.0,58198.0,0.27]
[1617963173250,2.607,58200.0,58196.0,0.01]
[1617963173450,2.607,58200.0,58199.0,0.27]
[1617963173651,3.16244169,58200.0,58199.0,0.27]
[1617963173851,4.16244169,58200.0,58197.0,0.01]
[1617963174052,4.16244169,58200.0,58199.0,0.27]
[1617963174251,4.16244169,58200.0,58199.0,0.3214]
[1617963174453,3.16244169,58200.0,58199.0,0.0514]
[1617963174652,4.16244169,58200.0,58199.0,0.26]
[1617963175154,4.16244169,58200.0,58195.0,0.10725655]
[1617963175358,4.16244169,58200.0,58199.0,0.27]
[1617963175555,3.16244169,58200.0,58199.0,0.27]
[1617963175855,1.0,58199.0,58198.0,0.26]
[1617963176154,3.1624338,58200.0,58197.0,0.01]
[1617963176555,0.4481781,58199.0,58198.0,0.27]
[1617963176755,0.4481781,58199.0,58195.0,0.10725655]
[1617963176956,3.16243258,58200.0,58196.0,0.3212]
[1617963177255,3.16243258,58200.0,58198.0,0.27]
[1617963177456,4.16243258,58200.0,58195.0,0.39588045]
[1617963177655,4.16243258,58200.0,58199.0,0.26]
[1617963177958,3.16243258,58200.0,58195.0,0.39588045]
[1617963178157,4.16243258,58200.0,58195.0,0.39588045]
[1617963178358,4.16243258,58200.0,58199.0,0.27]
[1617963178557,3.16243258,58200.0,58199.0,0.0518]
[1617963179057,4.16243258,58200.0,58199.0,0.3218]
[1617963179257,4.16243258,58200.0,58199.0,0.0518]
[1617963179458,4.16243258,58200.0,58199.0,0.3218]
[1617963179858,3.16243258,58200.0,58199.0,0.27]
[1617963180158,4.16243258,58200.0,58199.0,0.27]
[1617963180357,3.16243258,58200.0,58196.0,0.27]
[1617963180560,3.16243258,58200.0,58199.0,0.27]
[1617963180758,3.16243258,58200.0,58199.0,0.3222]
[1617963180961,3.16243258,58200.0,58199.0,0.0522]
[1617963181158,3.16243258,58200.0,58199.0,0.3222]
[1617963181359,4.16243258,58200.0,58199.0,0.3222]
[1617963181561,3.71425655,58200.0,58199.0,0.3222]
[1617963181761,2.71425655,58200.0,58199.0,0.3222]
[1617963181961,2.71425655,58200.0,58199.0,0.27]
[1617963182461,2.71425655,58200.0,58196.0,0.27]
[1617963182665,2.71425655,58200.0,58199.0,0.27]
[1617963182861,2.71425655,58200.0,58199.0,0.40147]
[1617963183064,2.71425655,58200.0,58199.0,0.13147]
[1617963183261,2.71425655,58200.0,58199.0,0.40147]
[1617963183665,0.10725655,58200.0,58199.0,0.40147]
[1617963186868,3.29055655,58200.0,58199.0,0.40147]
[1617963188972,3.29055655,58200.0,58199.0,0.27]
[1617963189373,3.29055655,58200.0,58197.0,0.27]
[1617963189574,3.29055655,58200.0,58199.0,0.27]
[1617963190071,3.29055655,58200.0,58197.0,0.27]
[1617963190273,3.29055655,58200.0,58199.0,0.27]
[1617963190775,3.29055655,58200.0,58197.0,0.27]
[1617963191073,3.29055655,58200.0,58199.0,0.27]
[1617963191372,3.29055655,58200.0,58197.0,0.27]
[1617963191674,0.10725655,58200.0,58196.0,0.28846187]
[1617963191872,0.44750586,58207.0,58197.0,0.27]
[1617963192077,0.44750586,58207.0,58197.0,0.40352]
[1617963192577,0.44750699,58208.0,58197.0,0.6920699]
[1617963192874,0.44748866,58210.0,58207.0,2.5159]
[1617963193073,0.44748866,58210.0,58208.0,0.2]
[1617963193273,0.44747095,58213.0,58209.0,1.0]
[1617963193484,0.44747095,58213.0,58209.0,1.32259]
[1617963193773,0.71182552,58237.0,58212.0,0.10725655]
[1617963193774,0.44743446,58214.0,58212.0,0.10725655]
[1617963193975,0.44743446,58214.0,58213.0,1.0]
[1617963194175,0.44743446,58214.0,58213.0,1.27]
[1617963194383,0.10725655,58237.0,58213.0,0.27]
[1617963194384,0.44743217,58218.0,58213.0,0.27]
[1617963194875,0.44742716,58219.0,58214.0,1.5]
[1617963195380,0.10725655,58237.0,58217.0,1.0]
[1617963195381,0.44741494,58220.0,58217.0,1.0]
[1617963195581,0.44741494,58220.0,58218.0,1.0]
[1617963195775,0.10725655,58237.0,58219.0,3.4932]
[1617963195776,0.44741494,58222.0,58219.0,3.4932]
[1617963195977,0.50841221,58227.0,58221.0,0.10725655]
[1617963196175,0.50841221,58227.0,58222.0,1.0]
[1617963196379,0.50841221,58227.0,58222.0,0.01]
[1617963196576,0.44740838,58223.0,58222.0,0.01]
[1617963196777,0.44740807,58224.0,58222.0,0.01]
[1617963197278,0.44740807,58224.0,58222.0,1.01]
[1617963197576,0.44740807,58224.0,58222.0,0.01]
[1617963197976,0.44740807,58224.0,58223.0,0.0521]
[1617963198377,0.44718083,58226.0,58223.0,1.3221]
[1617963198578,0.44718083,58226.0,58224.0,0.2]
[1617963198876,0.001,58239.0,58223.0,0.27]
[1617963198877,0.4471724,58225.0,58223.0,0.27]
[1617963199077,0.4471724,58225.0,58221.0,0.21693655]
[1617963199277,0.4471724,58225.0,58224.0,0.27]
[1617963199478,0.44716916,58227.0,58224.0,1.27]
[1617963199680,0.44716916,58227.0,58224.0,1.0]
[1617963199878,0.44716916,58227.0,58226.0,1.0]
[1617963200079,0.44716916,58227.0,58226.0,1.2]
[1617963200283,0.44716916,58227.0,58226.0,1.01]
[1617963200479,0.44716916,58227.0,58226.0,0.01]
[1617963200881,0.44716916,58227.0,58226.0,1.0]
[1617963201087,0.44716916,58227.0,58223.0,0.27]
[1617963201281,0.44716916,58227.0,58226.0,0.01]
[1617963201483,0.44716916,58227.0,58225.0,1.0]
[1617963201882,0.44716916,58227.0,58226.0,0.01]
[1617963202083,0.44716916,58227.0,58226.0,1.01]
[1617963202285,0.44716099,58228.0,58227.0,1.0]
[1617963203085,0.44716099,58228.0,58227.0,0.01]
[1617963203588,0.44716099,58228.0,58225.0,1.0]
[1617963203787,0.44716099,58228.0,58227.0,0.02]
[1617963203986,0.44716099,58228.0,58227.0,0.12725655]
[1617963204187,0.44716099,58228.0,58227.0,0.10725655]
[1617963204388,3.62906099,58228.0,58227.0,0.37725655]
[1617963204991,3.73806626,58228.0,58227.0,0.37725655]
[1617963206090,3.84532281,58228.0,58227.0,0.37725655]
[1617963206392,4.35347405,58228.0,58227.0,0.37725655]
[1617963207793,3.84532281,58228.0,58227.0,0.37725655]
[1617963208394,4.35347258,58228.0,58227.0,0.37725655]
[1617963209199,4.47675258,58228.0,58227.0,0.37725655]
[1617963209693,4.47675258,58228.0,58227.0,0.27]
[1617963210094,4.47675258,58228.0,58216.0,0.10725655]
[1617963210294,4.47675258,58228.0,58217.0,0.01]
[1617963210494,4.47675258,58228.0,58227.0,0.26]
[1617963210694,4.47675258,58228.0,58216.0,0.10725655]
[1617963210995,0.50810183,58224.0,58218.0,0.27]
[1617963211295,0.50810183,58224.0,58217.0,0.01]
[1617963211494,0.50812312,58222.0,58219.0,0.27]
[1617963211893,0.50812312,58222.0,58217.0,0.27]
[1617963212094,0.10725655,58218.0,58217.0,0.27]
[1617963212294,0.10725655,58218.0,58216.0,0.10725655]
[1617963212494,0.10725655,58218.0,58217.0,0.27]
[1617963212695,0.55441701,58218.0,58217.0,0.27]
[1617963217213,0.44716046,58218.0,58217.0,0.27]
[1617963217433,0.37689986,58227.0,58217.0,0.27]
[1617963217434,0.44713355,58220.0,58217.0,0.27]
[1617963223002,2.6714,58218.0,58217.0,0.27]
[1617963223203,2.77443,58218.0,58217.0,0.27]
[1617963224004,0.10303,58218.0,58217.0,0.27]
[1617963224205,0.10303,58218.0,58217.0,3.553]
[1617963224404,0.44713355,58220.0,58217.0,3.553]
[1617963225906,0.50809245,58226.0,58217.0,3.553]
[1617963226204,0.50809245,58226.0,58225.0,0.10725655]
[1617963226404,0.50809245,58226.0,58225.0,0.23495655]
[1617963226605,0.50809245,58226.0,58225.0,0.50495655]
[1617963230711,0.50809245,58226.0,58225.0,0.37725655]
[1617963233915,3.43889245,58226.0,58225.0,0.37725655]
[1617963234818,0.50809245,58226.0,58225.0,0.37725655]
[1617963238822,0.50809245,58226.0,58225.0,0.52943655]
[1617963239023,0.50809245,58226.0,58225.0,4.53853655]
[1617963240030,0.50809245,58226.0,58225.0,4.58973655]
[1617963240326,0.50809245,58226.0,58225.0,4.53853655]
[1617963240528,0.50809245,58226.0,58225.0,3.53853655]
[1617963240928,0.50809245,58226.0,58225.0,4.53853655]
[1617963241529,0.50809245,58226.0,58225.0,6.03853655]
[1617963241827,0.70809245,58226.0,58225.0,6.03853655]
[1617963244231,0.70809245,58226.0,58225.0,3.02943655]
[1617963246335,0.70809245,58226.0,58225.0,3.02843655]
[1617963251246,0.2,58226.0,58225.0,3.02843655]
[1617963251644,0.2,58226.0,58225.0,6.35483655]
[1617963252047,0.2,58226.0,58225.0,6.64055219]
[1617963252247,0.2,58226.0,58225.0,6.44055219]
[1617963252444,0.2,58226.0,58225.0,5.44055219]
[1617963252648,0.2,58226.0,58225.0,6.44055219]
[1617963253247,0.2,58226.0,58225.0,6.64055219]
[1617963253447,0.2,58226.0,58225.0,6.44055219]
[1617963254348,0.2,58226.0,58225.0,6.64055219]
[1617963255250,0.2,58226.0,58225.0,6.44055219]
[1617963256453,0.1738,58226.0,58225.0,6.44055219]
[1617963256852,0.1738,58226.0,58225.0,6.64055219]
[1617963257353,0.1393,58226.0,58225.0,6.64055219]
[1617963258065,0.1393,58226.0,58225.0,6.44055219]
[1617963258853,0.1393,58226.0,58225.0,6.64055219]
[1617963259652,0.1135,58226.0,58225.0,5.64055219]
[1617963259852,0.1135,58226.0,58225.0,6.64055219]
[1617963260754,0.1135,58226.0,58225.0,6.44055219]
[1617963261353,0.1135,58226.0,58225.0,5.44055219]
[1617963261654,0.1135,58226.0,58225.0,6.44055219]
[1617963262055,0.1135,58226.0,58225.0,5.44055219]
[1617963262254,0.1135,58226.0,58225.0,6.64055219]
[1617963262456,0.1135,58226.0,58225.0,6.44055219]
[1617963263163,0.0624,58226.0,58225.0,6.44055219]
[1617963263361,0.0624,58226.0,58225.0,5.44055219]
[1617963263562,0.0624,58226.0,58225.0,6.44055219]
[1617963264454,0.0624,58226.0,58225.0,6.64055219]
[1617963267357,0.0538,58226.0,58225.0,5.64055219]
[1617963267757,0.0538,58226.0,58225.0,6.64055219]
[1617963268757,0.0508,58226.0,58225.0,6.64055219]
[1617963269260,0.0508,58226.0,58225.0,6.44055219]
[1617963269660,0.0508,58226.0,58225.0,6.64055219]
[1617963270760,0.0508,58226.0,58225.0,6.44055219]
[1617963271761,0.0508,58226.0,58225.0,6.64055219]
[1617963271961,0.0388,58226.0,58225.0,6.64055219]
[1617963272262,0.0002,58226.0,58225.0,6.64055219]
[1617963272462,3.5257,58272.0,58225.0,6.64055219]
[1617963272862,3.5257,58272.0,58238.0,2.5]
[1617963273062,0.10725655,58274.0,58239.0,0.2]
[1617963273261,0.10725655,58274.0,58262.0,3.1043]
[1617963273462,0.10725655,58274.0,58264.0,1.0]
[1617963273662,0.10725655,58274.0,58265.0,1.0]
[1617963273862,0.10725655,58274.0,58265.0,1.01]
[1617963274164,0.10725655,58274.0,58264.0,1.0]
[1617963274363,0.10725655,58274.0,58265.0,1.0]
[1617963274563,0.10725655,58274.0,58273.0,0.10725655]
[1617963275063,0.10725655,58274.0,58273.0,0.36725655]
[1617963276165,1.0,58297.0,58273.0,0.36725655]
[1617963276365,1.0,58311.0,58290.0,2.5707]
[1617963276568,1.0,58311.0,58310.0,0.10725655]
[1617963276900,0.10725655,58325.0,58310.0,0.10725655]
[1617963276901,1.0,58319.0,58310.0,4.28699655]
[1617963277113,0.10725655,58325.0,58310.0,2.72769655]
[1617963277294,1.0,58347.0,58318.0,4.2968]
[1617963277544,1.0,58349.0,58320.0,1.0]
[1617963277705,1.0,58353.0,58324.0,1.0]
[1617963277878,1.0,58353.0,58324.0,1.13623]
[1617963278070,1.0,58353.0,58325.0,0.02]
[1617963278279,0.2,58354.0,58325.0,0.02]
[1617963278472,2.74209118,58364.0,58349.0,0.10725655]
[1617963278673,1.0,58358.0,58349.0,0.10725655]
[1617963278901,1.0,58362.0,58353.0,3.0117]
[1617963279299,1.0,58370.0,58354.0,0.27]
[1617963279671,0.2,58358.0,58354.0,0.27]
[1617963280012,2.33051644,58357.0,58354.0,0.27]
[1617963280574,0.10725655,58355.0,58354.0,0.27]
[1617963280773,4.36265655,58355.0,58354.0,0.27]
[1617963281082,4.36265655,58355.0,58350.0,0.27]
[1617963281285,0.30725655,58355.0,58354.0,0.01]
[1617963281673,0.30725655,58355.0,58339.0,2.8441]
[1617963281873,1.30725655,58355.0,58354.0,0.01]
[1617963282274,0.30725655,58355.0,58339.0,2.8441]
[1617963282476,0.2,58355.0,58354.0,0.27]
[1617963282875,0.2,58355.0,58351.0,0.10725655]
[1617963283075,0.2,58355.0,58354.0,0.27]
[1617963283576,0.2,58355.0,58351.0,0.10725655]
[1617963283776,0.2,58356.0,58354.0,0.27]
[1617963284177,0.2,58356.0,58352.0,0.01]
[1617963284377,0.2,58356.0,58354.0,0.27]
[1617963284579,0.10725655,58355.0,58354.0,0.27]
[1617963284777,0.10725655,58355.0,58352.0,0.27]
[1617963284980,0.10725655,58355.0,58354.0,0.27]
[1617963285380,0.10725655,58355.0,58352.0,0.27]
[1617963285879,0.10725655,58355.0,58354.0,0.27]
[1617963286082,0.10725655,58355.0,58352.0,0.27]
[1617963286285,0.23064655,58355.0,58354.0,0.27]
[1617963286685,0.23064655,58355.0,58352.0,0.27]
[1617963286686,3.79924655,58355.0,58352.0,0.27]
[1617963286891,4.79924655,58355.0,58352.0,0.27]
[1617963287082,0.43064655,58355.0,58354.0,0.01]
[1617963287283,0.43064655,58355.0,58353.0,0.01]
[1617963287483,1.43064655,58355.0,58354.0,0.27]
[1617963287684,0.43064655,58355.0,58354.0,0.27]
[1617963287881,1.0,58354.0,58340.0,0.26]
[1617963288181,0.2,58353.0,58339.0,0.02]
[1617963288381,1.0,58351.0,58338.0,0.10725655]
[1617963288680,0.2,58350.0,58349.0,0.10725655]
[1617963288882,0.2,58350.0,58339.0,0.27]
[1617963289082,4.7473,58350.0,58315.0,0.01]
[1617963289282,5.7473,58350.0,58315.0,0.01]
[1617963289599,1.0,58327.0,58314.0,0.27]
[1617963289781,0.2,58326.0,58316.0,0.27]
[1617963289982,2.793,58322.0,58316.0,0.27]
[1617963290184,0.2,58321.0,58314.0,0.27]
[1617963290383,1.2,58321.0,58317.0,0.27]
[1617963290583,0.2,58321.0,58320.0,0.10725655]
[1617963290858,0.2,58321.0,58315.0,0.27]
[1617963291036,1.2,58321.0,58320.0,0.01]
[1617963291268,1.2,58321.0,58283.0,1.28615257]
[1617963291269,1.0,58316.0,58283.0,0.4548]
[1617963291440,0.2,58315.0,58313.0,0.26]
[1617963291606,0.30816,58315.0,58289.0,1.0]
[1617963291886,3.2609762,58306.0,58286.0,1.01]
[1617963292102,3.4609762,58306.0,58300.0,0.26]
[1617963292385,3.4609762,58306.0,58287.0,0.01]
[1617963292386,0.57107955,58305.0,58287.0,0.01]
[1617963292585,0.77107955,58305.0,58287.0,1.0]
[1617963292787,0.77107955,58305.0,58301.0,0.26]
[1617963293086,0.57107955,58305.0,58294.0,1.0]
[1617963293286,0.57107955,58305.0,58302.0,0.26]
[1617963293686,0.57107955,58305.0,58295.0,0.26]
[1617963293888,0.57107955,58305.0,58303.0,0.26]
[1617963294387,0.57107955,58305.0,58292.0,0.02]
[1617963294588,0.57107955,58305.0,58304.0,0.11725655]
[1617963294788,0.57107955,58305.0,58304.0,0.10725655]
[1617963295188,0.57107955,58305.0,58304.0,0.36725655]
[1617963295491,0.77107955,58305.0,58304.0,0.36725655]
[1617963295689,0.77107955,58305.0,58304.0,0.26]
[1617963295890,1.77107955,58305.0,58304.0,0.26]
[1617963296090,1.77107955,58305.0,58284.0,0.27]
[1617963296490,1.77107955,58305.0,58283.0,0.4548]
[1617963296491,1.77107955,58305.0,58304.0,0.27]
[1617963296691,1.77107955,58305.0,58294.0,0.10725655]
[1617963297091,0.77107955,58305.0,58304.0,0.27]
[1617963297293,0.77107955,58305.0,58295.0,0.01]
[1617963297492,2.34220339,58305.0,58294.0,0.10725655]
[1617963297693,2.14220339,58305.0,58304.0,0.27]
[1617963298001,0.57109581,58303.0,58297.0,3.5539]
[1617963298201,0.57109581,58303.0,58298.0,0.01]
[1617963298481,0.57109581,58303.0,58299.0,1.5]
[1617963298638,0.57109581,58303.0,58302.0,5.59255655]
[1617963298895,0.57109581,58303.0,58302.0,5.79255655]
[1617963299309,0.57109581,58303.0,58302.0,5.80255655]
[1617963299696,0.57109581,58303.0,58302.0,5.85385655]
[1617963299898,1.14220339,58305.0,58302.0,4.85385655]
[1617963300098,1.13460339,58305.0,58302.0,4.85385655]
[1617963300301,1.13460339,58305.0,58302.0,10.85385655]
[1617963300501,1.10310339,58305.0,58304.0,6.0]
[1617963300698,1.10310339,58305.0,58304.0,7.7]
[1617963300899,1.10310339,58305.0,58304.0,7.97]
[1617963301299,1.02870339,58305.0,58304.0,7.97]
[1617963301899,1.02870339,58305.0,58304.0,7.969]
[1617963302106,0.45757955,58305.0,58304.0,7.969]
[1617963302302,0.0516,58427.0,58304.0,7.969]
[1617963302500,0.2,58371.0,58304.0,7.969]
[1617963302699,0.2,58371.0,58370.0,0.10725655]
[1617963303263,1.0,58373.0,58370.0,3.79295655]
[1617963303434,1.0,58381.0,58370.0,0.48530655]
[1617963303606,2.604,58379.0,58370.0,0.48530655]
[1617963304000,1.0,58387.0,58370.0,0.48530655]
[1617963304235,1.0,58387.0,58373.0,3.1548]
[1617963304500,4.1165,58402.0,58373.0,3.1548]
[1617963304801,4.1165,58402.0,58385.0,0.10725655]
[1617963305000,0.002,58397.0,58385.0,0.20221655]
[1617963305201,0.002,58397.0,58385.0,0.47221655]
[1617963305400,3.4431,58397.0,58385.0,0.47221655]
[1617963306300,0.002,58397.0,58385.0,0.47221655]
[1617963306503,0.002,58397.0,58385.0,3.98031655]
[1617963306801,0.10725655,58394.0,58385.0,4.98031655]
[1617963307302,0.002,58397.0,58385.0,6.48031655]
[1617963308503,0.002,58397.0,58385.0,9.07072533]
[1617963308726,0.002,58397.0,58385.0,8.07072533]
[1617963308941,0.02278882,58390.0,58385.0,8.07072533]
[1617963309123,8.882e-05,58390.0,58385.0,8.07072533]
[1617963309302,8.882e-05,58390.0,58389.0,1.19286802]
[1617963309502,8.882e-05,58390.0,58389.0,5.87979272]
[1617963309701,8.882e-05,58390.0,58389.0,6.14979272]
[1617963309901,8.882e-05,58390.0,58389.0,5.14979272]
[1617963310100,8.882e-05,58390.0,58389.0,1.92299117]
[1617963310635,8.882e-05,58390.0,58389.0,1.77698899]
[1617963310843,8.882e-05,58390.0,58389.0,5.24588899]
[1617963311004,8.882e-05,58390.0,58389.0,4.24588899]
[1617963311203,8.882e-05,58390.0,58389.0,5.24588899]
[1617963311602,8.882e-05,58390.0,58389.0,4.39104692]
[1617963311802,8.882e-05,58390.0,58389.0,1.92214692]
[1617963312408,8.882e-05,58390.0,58389.0,1.82808899]
[1617963312605,8.882e-05,58390.0,58389.0,1.77698899]
[1617963314907,0.10556882,58390.0,58389.0,1.77698899]
[1617963316140,0.10556882,58390.0,58389.0,1.32514504]
[1617963316755,0.21282537,58390.0,58389.0,1.32514504]
[1617963317336,3.16082537,58390.0,58389.0,1.32514504]
[1617963317511,3.25900243,58390.0,58389.0,0.92752237]
[1617963317998,3.25900243,58390.0,58389.0,0.27]
[1617963317999,4.3312973,58390.0,58389.0,0.27]
[1617963318512,4.3312973,58390.0,58380.0,0.27]
[1617963318813,4.27121,58390.0,58381.0,0.27]
[1617963319013,4.27121,58390.0,58379.0,0.10725655]
[1617963319014,1.0,58389.0,58379.0,0.10725655]
[1617963319213,1.0,58386.0,58379.0,0.10725655]
[1617963319413,0.99898162,58388.0,58380.0,0.27]
[1617963319713,1.0,58386.0,58379.0,0.10725655]
[1617963319913,1.0,58383.0,58379.0,0.10725655]
[1617963320214,1.5,58388.0,58380.0,0.27]
[1617963320431,4.2822,58381.0,58380.0,0.27]
[1617963320647,5.9822,58381.0,58373.0,0.27]
[1617963320816,0.10725655,58374.0,58373.0,0.27]
[1617963321018,2.90854655,58374.0,58371.0,0.27]
[1617963321418,2.90854655,58374.0,58361.0,0.10725655]
[1617963321614,2.90854655,58374.0,58355.0,0.27596051]
[1617963321815,2.90854655,58374.0,58372.0,0.27]
[1617963322015,1.90854655,58374.0,58362.0,0.27]
[1617963322215,1.90854655,58374.0,58356.0,0.01]
[1617963322415,1.0,58373.0,58349.0,0.27622212]
[1617963322614,1.0,58363.0,58349.0,0.27622212]
[1617963322815,0.10725655,58358.0,58357.0,0.27]
[1617963323015,0.24261655,58358.0,58354.0,0.10725655]
[1617963323417,0.24261655,58358.0,58357.0,0.26]
[1617963323615,0.24261655,58358.0,58354.0,0.10725655]
[1617963324035,1.24261655,58358.0,58357.0,0.27]
[1617963324252,0.24261655,58358.0,58355.0,0.01]
[1617963324444,0.24261655,58358.0,58354.0,0.10725655]
[1617963324633,0.24261655,58358.0,58357.0,0.27]
[1617963324821,0.24261655,58358.0,58355.0,0.27]
[1617963325032,0.10725655,58358.0,58355.0,0.27]
[1617963325221,0.10725655,58358.0,58357.0,0.27]
[1617963325420,1.0,58380.0,58357.0,0.27]
[1617963325620,1.0,58380.0,58355.0,0.27]
[1617963325820,1.0,58368.0,58355.0,0.27]
[1617963326020,1.14779,58368.0,58358.0,0.27]
[1617963326221,1.14779,58368.0,58355.0,0.27]
[1617963326422,1.0,58365.0,58355.0,0.27]
[1617963326650,1.0,58365.0,58359.0,0.27]
[1617963326875,0.14779,58368.0,58364.0,0.10725655]
[1617963327245,0.14779,58368.0,58365.0,0.01]
[1617963327649,1.0,58366.0,58365.0,0.01]
[1617963328726,1.10725655,58366.0,58365.0,1.48351012]
[1617963328926,1.05632161,58366.0,58365.0,1.02303821]
[1617963329126,1.10725655,58366.0,58365.0,1.02303821]
[1617963329326,1.10725655,58366.0,58365.0,0.01]
[1617963329726,1.10623785,58366.0,58365.0,0.01]
[1617963330527,2.60623785,58366.0,58365.0,0.01]
[1617963330849,3.2822,58381.0,58365.0,2.69565655]
[1617963330850,0.10725655,58374.0,58365.0,2.69565655]
[1617963331032,0.10725655,58374.0,58365.0,3.78041655]
[1617963331239,1.0,58397.0,58368.0,1.0]
[1617963331653,3.5945,58402.0,58365.0,3.05041655]
[1617963331654,1.0,58394.0,58369.0,0.27]
[1617963331928,1.0,58399.0,58369.0,1.27]
[1617963332129,1.0,58399.0,58376.0,0.27687941]
[1617963332327,0.2,58423.0,58376.0,0.27687941]
[1617963332529,1.0,58411.0,58382.0,1.0]
[1617963332758,1.2,58411.0,58387.0,2.5372]
[1617963333028,1.2,58411.0,58407.0,0.10725655]
[1617963333029,1.0,58410.0,58407.0,0.10725655]
[1617963333229,1.0,58408.0,58407.0,0.10725655]
[1617963333641,1.0,58408.0,58407.0,0.35725655]
[1617963334040,1.0,58408.0,58407.0,0.25]
[1617963334041,2.5,58408.0,58407.0,0.25]
[1617963334239,2.5,58408.0,58384.0,0.27604282]
[1617963334240,5.3944,58408.0,58384.0,0.27604282]
[1617963334442,5.48887,58408.0,58384.0,0.27604282]
[1617963334743,1.5,58406.0,58379.0,0.27602651]
[1617963334936,1.0,58385.0,58382.0,0.10725655]
[1617963335132,1.0,58392.0,58382.0,0.37725655]
[1617963335375,1.0,58393.0,58382.0,0.51472655]
[1617963335633,1.0,58403.0,58382.0,0.24472655]
[1617963335832,1.0,58403.0,58383.0,0.27]
[1617963336032,1.0,58404.0,58383.0,0.27]
[1617963336234,1.0,58398.0,58383.0,0.27]
[1617963336533,1.0,58398.0,58383.0,0.54565364]
[1617963336774,1.0,58401.0,58390.0,2.8333]
[1617963336968,0.002,58413.0,58400.0,0.10725655]
[1617963337133,0.002,58413.0,58400.0,0.23419655]
[1617963337344,1.0,58409.0,58401.0,0.01]
[1617963337537,0.002,58413.0,58401.0,0.01]
[1617963337538,1.0,58406.0,58401.0,0.01]
[1617963337834,0.2,58408.0,58401.0,0.01]
[1617963338333,1.0,58407.0,58401.0,0.01]
[1617963338534,1.0,58405.0,58401.0,0.01]
[1617963338735,1.0,58402.0,58401.0,0.01]
[1617963338937,1.30725655,58402.0,58401.0,0.01]
[1617963339136,1.10725655,58402.0,58401.0,0.01]
[1617963339636,0.10725655,58402.0,58401.0,0.01]
[1617963340537,1.43248655,58402.0,58401.0,0.01]
[1617963340737,1.43248655,58402.0,58381.0,0.27]
[1617963340938,1.32523,58402.0,58401.0,0.27]
[1617963341139,0.32523,58402.0,58401.0,0.27]
[1617963341339,0.32523,58402.0,58387.0,0.10725655]
[1617963341340,1.32523,58402.0,58387.0,0.10725655]
[1617963341639,1.32523,58402.0,58401.0,0.01]
[1617963341840,0.32523,58402.0,58387.0,0.10725655]
[1617963342041,0.2,58402.0,58387.0,0.10725655]